bitfinex/quotes_SOLUSD_20240727
["timestamp","ask_amount","ask_price","bid_price","bid_amount"]
[1722107937615,61.32520574,180.66,180.65,1.85e-05]
[1722107937911,20.0,180.63,180.53,15.8568]
[1722107938610,13.8421,180.61,180.53,15.8568]
[1722107938808,5.5386,180.55,180.53,15.8568]
[1722107939014,5.5383,180.56,180.53,15.8568]
[1722107939201,65.0,180.6,180.53,15.8568]
[1722107940413,5.5385,180.56,180.53,15.8568]
[1722107940622,5.5386,180.55,180.53,15.8568]
[1722107940919,65.0,180.6,180.53,15.8568]
[1722107940920,5.538,180.57,180.53,15.8568]
[1722107941111,20.0,180.6,180.53,15.8568]
[1722107941285,25.5373,180.6,180.53,15.8568]
[1722107941491,20.0,180.6,180.53,17.64956162]
[1722107941713,5.5377,180.58,180.53,17.64956162]
[1722107941929,13.839,180.65,180.53,17.64956162]
[1722107942217,5.5367,180.62,180.53,17.64956162]
[1722107942514,5.5368,180.61,180.53,17.64956162]
[1722107942718,13.8362,180.69,180.53,17.64956162]
[1722107942890,20.96382602,180.7,180.55,6.4796]
[1722107942891,0.96382602,180.7,180.55,6.4796]
[1722107943130,0.96382602,180.7,180.57,15.4909]
[1722107943324,18.2,180.87,180.57,15.4909]
[1722107943325,5.5338,180.71,180.6,15.4909]
[1722107943509,5.5334,180.73,180.61,1.79196752]
[1722107943688,13.8306,180.76,180.61,1.79196752]
[1722107943889,20.0,180.74,180.61,1.79196752]
[1722107944194,0.96333978,180.78,180.61,1.79196752]
[1722107944396,20.96333978,180.78,180.61,1.79196752]
[1722107944606,5.5346,180.68,180.61,1.79196752]
[1722107945414,5.5346,180.68,180.6,15.4909]
[1722107945415,5.5358,180.64,180.6,15.4909]
[1722107945592,13.8362,180.69,180.6,15.4909]
[1722107945797,5.5364,180.62,180.6,15.4909]
[1722107945999,5.5361,180.64,180.6,15.4909]
[1722107946302,5.5364,180.63,180.6,15.4909]
[1722107946502,0.17,180.62,180.6,15.4909]
[1722107947792,65.0,180.68,180.6,15.4909]
[1722107947989,5.5352,180.66,180.6,15.4909]
[1722107948516,0.17,180.65,180.6,15.4909]
[1722107948723,50.5349,180.68,180.6,17.28296675]
[1722107948928,5.5351,180.67,180.6,17.28296675]
[1722107949102,14.79253978,180.78,180.6,17.28296675]
[1722107949345,20.0,180.77,180.6,17.28296675]
[1722107949516,20.0,180.77,180.61,1.79196752]
[1722107949817,5.5347,180.68,180.61,1.79196752]
[1722107950015,5.5349,180.67,180.61,1.79196752]
[1722107950317,13.8336,180.72,180.61,1.79196752]
[1722107950520,5.5354,180.66,180.61,1.79196752]
[1722107950728,65.0,180.71,180.61,1.79196752]
[1722107950903,0.17,180.7,180.61,1.79196752]
[1722107951615,5.5361,180.63,180.61,1.79196752]
[1722107951830,5.5357,180.65,180.61,1.79196752]
[1722107952006,0.17,180.64,180.61,1.79196752]
[1722107952397,5.5346,180.68,180.61,1.79196752]
[1722107952703,5.5349,180.67,180.61,1.79196752]
[1722107952904,5.5346,180.68,180.61,1.79196752]
[1722107953118,5.5339,180.71,180.61,1.79196752]
[1722107953306,14.79273978,180.78,180.61,65.03196752]
[1722107953813,5.5324,180.76,180.63,15.324]
[1722107954029,5.5325,180.75,180.64,1.79166992]
[1722107954202,5.5337,180.71,180.64,1.79166992]
[1722107955404,0.96333978,180.78,180.64,1.79166992]
[1722107955721,65.96333978,180.78,180.64,1.79166992]
[1722107956100,20.96333978,180.78,180.64,1.79166992]
[1722107956303,5.5315,180.79,180.67,21.9454]
[1722107956655,15.8404,180.89,180.67,21.9454]
[1722107956656,5.5306,180.82,180.72,15.324]
[1722107956916,20.4032,180.91,180.73,1.7907777]
[1722107957119,5.5296,180.85,180.74,6.6214]
[1722107957317,5.5296,180.85,180.75,1.79057956]
[1722107957918,0.96267351,180.91,180.8,18.24]
[1722107958122,0.96267351,180.91,180.76,33.564]
[1722107958123,20.0,180.99,180.81,1.78998537]
[1722107958419,20.0,180.96,180.81,1.78998537]
[1722107958629,20.0,180.93,180.81,1.78998537]
[1722107958815,5.5274,180.92,180.85,5.5294]
[1722107959006,13.8156,180.96,180.86,15.324]
[1722107959608,5.78449507,181.0,180.86,15.324]
[1722107959815,20.3958,181.01,180.87,1.78939158]
[1722107960017,35.324,180.99,180.87,1.78939158]
[1722107960316,20.0,180.99,180.87,1.78939158]
[1722107960542,5.5266,180.95,180.87,1.78939158]
[1722107960726,5.5267,180.94,180.88,5.5285]
[1722107960925,13.8141,180.98,180.87,1.78939158]
[1722107961299,20.0,180.97,180.87,1.78939158]
[1722107961921,0.17,180.96,180.87,1.78939158]
[1722107962217,45.17,180.96,180.88,5.5284]
[1722107962399,5.5267,180.94,180.88,5.5284]
[1722107962605,5.5271,180.93,180.87,1.78939158]
[1722107962815,5.5271,180.93,180.87,7.31819158]
[1722107963424,5.5271,180.93,180.87,1.78939158]
[1722107963615,5.528,180.9,180.87,1.78939158]
[1722107963817,20.0,180.97,180.87,1.78939158]
[1722107964027,5.5268,180.94,180.87,7.31819158]
[1722107964210,5.5276,180.91,180.87,1.78939158]
[1722107964528,0.17,180.9,180.87,1.78939158]
[1722107964703,5.5273,180.92,180.87,1.78939158]
[1722107965025,20.0,180.99,180.87,1.78939158]
[1722107965403,5.5264,180.95,180.89,5.5281]
[1722107965906,5.6967,180.94,180.87,1.78939158]
[1722107966104,0.17,180.94,180.88,5.5284]
[1722107966725,0.17,180.94,180.87,1.78939158]
[1722107966931,5.527,180.93,180.87,7.31809158]
[1722107967226,5.5267,180.94,180.88,5.5283]
[1722107967531,20.0,181.0,180.87,1.78939158]
[1722107967532,5.697,180.93,180.87,1.78939158]
[1722107967919,5.5273,180.92,180.87,1.78939158]
[1722107968323,20.0,181.0,180.89,5.5281]
[1722107968524,5.5263,180.96,180.89,7.31729373]
[1722107968730,5.5263,180.96,180.9,5.5277]
[1722107968931,5.5257,180.97,180.91,5.5275]
[1722107969424,5.5264,180.95,180.89,1.78919373]
[1722107969807,5.6967,180.94,180.89,1.78919373]
[1722107970216,0.17,180.94,180.89,1.78919373]
[1722107970520,25.527,180.93,180.89,1.78919373]
[1722107970713,5.5269,180.94,180.89,1.78919373]
[1722107970910,0.17,180.93,180.89,1.78919373]
[1722107971111,5.5275,180.92,180.89,1.78919373]
[1722107971324,0.17,180.91,180.86,15.324]
[1722107971714,0.17,180.91,180.81,16.4305]
[1722107971920,20.0,180.93,180.81,16.4305]
[1722107971921,45.0,180.92,180.81,16.4305]
[1722107972123,5.5294,180.85,180.81,16.4305]
[1722107972630,0.17,180.91,180.81,16.4305]
[1722107972821,5.5279,180.9,180.84,5.5296]
[1722107973005,5.5282,180.89,180.84,5.5296]
[1722107973205,0.17,180.9,180.85,5.5294]
[1722107973409,0.17,180.9,180.82,1.78988638]
[1722107973631,41.437,181.0,180.82,20.02988638]
[1722107973838,5.5266,180.95,180.88,5.5284]
[1722107974017,5.5266,180.95,180.89,5.5282]
[1722107974639,13.8127,181.0,180.83,16.4305]
[1722107974844,13.8127,181.0,180.84,46.78968842]
[1722107975047,0.17,180.99,180.85,1.78958946]
[1722107975415,13.8145,180.97,180.85,1.78958946]
[1722107975716,5.5282,180.89,180.85,1.78958946]
[1722107976735,0.17,180.9,180.85,1.78958946]
[1722107976913,5.5289,180.87,180.85,1.78958946]
[1722107977342,5.5291,180.86,180.83,16.4305]
[1722107977516,5.6991,180.86,180.83,16.4305]
[1722107978546,0.17,180.86,180.83,16.4305]
[1722107978726,20.0,180.9,180.83,16.4305]
[1722107978942,0.17,180.89,180.85,5.5293]
[1722107979238,25.528,180.9,180.85,5.5293]
[1722107979422,25.528,180.9,180.84,5.5297]
[1722107979622,5.528,180.9,180.84,5.5297]
[1722107979817,0.17,180.91,180.86,5.529]
[1722107980017,0.17,180.91,180.85,1.78958946]
[1722107980532,5.5285,180.88,180.85,1.78958946]
[1722107980717,0.17,180.91,180.85,1.78958946]
[1722107980919,0.17,180.91,180.87,5.5288]
[1722107981138,5.5272,180.93,180.87,5.5288]
[1722107981342,5.6974,180.92,180.85,1.78958946]
[1722107981664,0.17,180.92,180.87,5.5288]
[1722107982026,5.527,180.93,180.87,7.31819158]
[1722107982255,5.5265,180.95,180.89,5.5279]
[1722107982458,13.8129,180.99,180.82,18.24]
[1722107982459,5.5251,180.99,180.93,5.5268]
[1722107982743,13.8103,181.03,180.91,16.4305]
[1722107982944,13.8103,181.03,180.93,5.5269]
[1722107983119,13.8103,181.03,180.92,1.78889705]
[1722107983318,5.5262,180.96,180.92,1.78889705]
[1722107983521,13.8103,181.03,180.92,7.31609705]
[1722107983751,5.5254,180.99,180.92,1.78889705]
[1722107984342,5.5254,180.99,180.93,1.78879818]
[1722107984537,5.5254,180.99,180.93,7.31539818]
[1722107984734,5.5254,180.98,180.93,1.78879818]
[1722107985146,5.5252,180.99,180.93,7.31569818]
[1722107985731,13.8103,181.03,180.93,1.78879818]
[1722107985949,65.17,181.02,180.93,1.78879818]
[1722107986875,20.0,181.02,180.93,1.78879818]
[1722107987041,5.5248,181.0,180.95,5.5262]
[1722107987549,5.5248,181.0,180.94,5.5266]
[1722107987848,20.0,181.02,180.94,1.78869932]
[1722107988035,5.5246,181.01,180.95,1.78860047]
[1722107988236,14.77020025,181.07,180.95,1.78860047]
[1722107988237,5.5242,181.02,180.95,1.78860047]
[1722107989040,13.8071,181.07,180.95,1.78860047]
[1722107989843,5.5242,181.03,180.95,1.78860047]
[1722107990039,5.5246,181.01,180.95,1.78860047]
[1722107990355,5.5252,180.99,180.95,1.78860047]
[1722107990531,13.8092,181.04,180.95,1.78860047]
[1722107990729,5.5257,180.97,180.95,1.78860047]
[1722107991926,5.5255,180.98,180.95,1.78860047]
[1722107992255,5.5251,180.99,180.95,1.78860047]
[1722107992437,0.17,180.98,180.95,1.78860047]
[1722107992644,5.6955,180.98,180.95,1.78860047]
[1722107992852,5.526,180.96,180.95,1.78860047]
[1722107993093,5.5257,180.98,180.91,16.4305]
[1722107993362,5.5257,180.98,180.93,5.5269]
[1722107993557,0.17,180.99,180.94,5.5265]
[1722107993731,5.5245,181.02,180.95,1.78860047]
[1722107993933,6.8920185,181.1,180.95,1.78860047]
[1722107994130,6.8920185,181.1,181.0,5.5245]
[1722107994842,5.5233,181.05,180.95,1.78860047]
[1722107996311,0.7653185,181.1,180.97,6.4808]
[1722107996440,6.2871185,181.1,180.98,21.78830398]
[1722107996637,6.2871185,181.1,181.0,16.4227]
[1722107996638,0.7653185,181.1,181.0,16.4227]
[1722107996891,6.2871185,181.1,181.01,21.78800759]
[1722107997190,6.2872185,181.1,181.02,1.78790882]
[1722107997371,0.7653185,181.1,181.02,1.78790882]
[1722107997864,0.17,181.09,181.02,1.78790882]
[1722107998181,45.17,181.09,181.0,16.4227]
[1722107998391,5.5233,181.06,181.0,16.4227]
[1722107998686,65.17,181.09,181.0,16.4227]
[1722107999174,5.523,181.06,181.0,16.4227]
[1722108000353,65.0,181.09,181.0,16.4227]
[1722108000614,5.5236,181.05,181.0,16.4227]
[1722108000784,0.17,181.08,181.01,1.78800759]
[1722108000984,0.7653185,181.1,181.01,1.78800759]
[1722108001199,0.7653185,181.1,181.01,21.78800759]
[1722108002073,0.7653185,181.1,181.02,18.24]
[1722108002258,0.7653185,181.1,181.03,28.26861006]
[1722108002460,0.7653185,181.1,181.04,1.7877113]
[1722108003071,0.7653185,181.1,181.05,16.4227]
[1722108003387,5.5194,181.18,181.06,66.78751383]
[1722108003589,5.519,181.19,181.07,1.78741511]
[1722108003885,5.5193,181.18,181.07,1.78741511]
[1722108004195,5.5206,181.14,181.07,1.78741511]
[1722108004400,13.7979,181.19,181.07,1.78741511]
[1722108004633,20.0,181.18,181.07,1.78741511]
[1722108004904,5.5206,181.14,181.07,1.78741511]
[1722108005075,20.0,181.18,181.07,1.78741511]
[1722108005266,27.55245311,181.23,181.07,1.78741511]
[1722108005267,7.55245311,181.23,181.07,1.78741511]
[1722108005480,5.5187,181.21,181.07,1.78741511]
[1722108005671,5.519,181.19,181.07,1.78741511]
[1722108006068,5.5185,181.21,181.07,1.78741511]
[1722108006273,5.5179,181.23,181.08,16.4227]
[1722108006483,5.5179,181.23,181.1,6.4808]
[1722108006696,7.55225741,181.27,181.11,20.0]
[1722108006993,5.5177,181.24,181.12,1.78692168]
[1722108007381,5.5178,181.23,181.12,1.78692168]
[1722108008073,5.5175,181.25,181.12,1.78692168]
[1722108008573,7.55225741,181.27,181.12,1.78692168]
[1722108008988,5.5179,181.23,181.12,1.78692168]
[1722108009585,5.5181,181.22,181.12,1.78692168]
[1722108009992,5.5178,181.23,181.12,1.78692168]
[1722108010183,0.17,181.22,181.12,1.78692168]
[1722108010574,5.5178,181.23,181.12,1.78692168]
[1722108010771,45.17,181.22,181.12,1.78692168]
[1722108011076,5.5189,181.2,181.12,1.78692168]
[1722108011471,5.5194,181.18,181.12,1.78692168]
[1722108011705,5.5188,181.2,181.12,1.78692168]
[1722108011890,5.518,181.23,181.12,1.78692168]
[1722108012088,7.55225741,181.27,181.12,1.78692168]
[1722108012089,5.5175,181.25,181.12,1.78692168]
[1722108012393,5.5171,181.26,181.13,15.6706]
[1722108012595,5.5171,181.26,181.14,1.78672438]
[1722108012797,5.5171,181.26,181.14,46.78672438]
[1722108012990,5.5166,181.27,181.14,46.78672438]
[1722108013687,0.7653185,181.28,181.16,15.6706]
[1722108013888,0.7653185,181.28,181.17,66.78642852]
[1722108014199,0.7653185,181.28,181.18,1.78632992]
[1722108014782,6.2819185,181.28,181.18,1.78632992]
[1722108014985,0.7653185,181.28,181.18,1.78632992]
[1722108015628,0.7653185,181.28,181.18,46.78632992]
[1722108015781,0.7653185,181.28,181.19,20.0]
[1722108016129,0.7653185,181.28,181.19,1.78623133]
[1722108016280,5.5169,181.26,181.19,1.78623133]
[1722108016477,5.5173,181.25,181.19,1.78623133]
[1722108016682,0.7653185,181.28,181.19,1.78623133]
[1722108016883,0.17,181.27,181.19,1.78623133]
[1722108017387,5.6869,181.27,181.19,1.78623133]
[1722108018102,5.5172,181.25,181.19,1.78623133]
[1722108018301,6.2819185,181.28,181.19,1.78623133]
[1722108018684,5.5169,181.26,181.19,1.78623133]
[1722108019029,0.7653185,181.28,181.19,1.78623133]
[1722108019381,0.17,181.27,181.19,1.78623133]
[1722108019806,5.5171,181.26,181.19,1.78623133]
[1722108020010,6.2818185,181.28,181.2,1.78613275]
[1722108020201,0.7653185,181.28,181.2,1.78613275]
[1722108020401,5.5169,181.26,181.2,1.78613275]
[1722108020710,0.7653185,181.28,181.2,1.78613275]
[1722108020886,5.5178,181.23,181.16,15.6706]
[1722108021217,20.0,181.25,181.17,1.78642852]
[1722108021399,5.5182,181.22,181.17,1.78642852]
[1722108021720,0.17,181.24,181.17,1.78642852]
[1722108022007,20.17,181.25,181.17,1.78642852]
[1722108022208,5.5178,181.23,181.17,1.78642852]
[1722108022787,0.17,181.25,181.17,1.78642852]
[1722108023191,0.7653185,181.28,181.17,1.78642852]
[1722108023399,25.6866,181.27,181.17,1.78642852]
[1722108023593,5.6866,181.27,181.17,1.78642852]
[1722108024309,0.17,181.27,181.17,46.78642852]
[1722108024604,13.7873,181.33,181.17,46.78642852]
[1722108024605,0.96195579,181.35,181.2,18.24]
[1722108024816,5.5162,181.37,181.22,15.6706]
[1722108025001,5.5162,181.37,181.23,21.78583708]
[1722108025310,5.5141,181.36,181.25,6.1399]
[1722108025613,5.5129,181.39,181.27,15.6706]
[1722108025820,0.96136044,181.4,181.27,15.6706]
[1722108025821,5.5129,181.4,181.28,66.78534452]
[1722108026000,5.5124,181.41,181.29,1.78524604]
[1722108026913,5.5129,181.39,181.29,1.78524604]
[1722108027109,5.5124,181.41,181.29,1.78524604]
[1722108027501,0.96104622,181.45,181.29,1.78524604]
[1722108027816,5.512,181.43,181.29,46.78524604]
[1722108028020,5.512,181.43,181.3,20.0]
[1722108028192,0.96104622,181.45,181.31,1.78504911]
[1722108028393,5.5118,181.43,181.32,21.8105]
[1722108028603,5.5118,181.43,181.33,1.78485223]
[1722108028924,5.5117,181.43,181.33,1.78485223]
[1722108029097,0.7653185,181.46,181.33,21.78485223]
[1722108029412,6.2762185,181.46,181.33,21.78485223]
[1722108029707,0.7653185,181.46,181.34,15.6706]
[1722108029909,5.5115,181.44,181.35,21.78465539]
[1722108030088,0.7653185,181.46,181.36,1.78455698]
[1722108030815,5.5121,181.42,181.36,1.78455698]
[1722108030991,5.5126,181.41,181.36,1.78455698]
[1722108031194,0.17,181.4,181.34,15.6706]
[1722108031397,0.17,181.4,181.17,38.24]
[1722108031398,5.5137,181.37,181.29,15.0787]
[1722108031807,45.17,181.36,181.29,15.0787]
[1722108032112,0.17,181.36,181.3,1.78514757]
[1722108032500,20.0,181.45,181.3,1.78514757]
[1722108032707,5.5118,181.43,181.3,21.78514757]
[1722108033016,5.682,181.42,181.31,20.0]
[1722108033212,0.17,181.42,181.32,1.78495067]
[1722108033521,20.0,181.45,181.32,1.78495067]
[1722108033522,5.5111,181.45,181.32,1.78495067]
[1722108033831,0.7653185,181.46,181.32,1.78495067]
[1722108033997,5.5117,181.43,181.32,1.78495067]
[1722108034198,0.7653185,181.46,181.33,15.0787]
[1722108034400,6.2761185,181.46,181.34,21.7847538]
[1722108034616,5.5111,181.45,181.35,1.78465539]
[1722108034816,0.7653185,181.46,181.35,1.78465539]
[1722108034997,6.2762185,181.46,181.35,1.78465539]
[1722108035321,0.7653185,181.46,181.36,6.2588]
[1722108035500,0.7653185,181.46,181.38,15.0787]
[1722108035706,0.7653185,181.46,181.38,16.86306021]
[1722108036222,0.7653185,181.46,181.39,1.78426184]
[1722108037244,0.2653185,181.46,181.39,1.78426184]
[1722108037521,5.5113,181.45,181.39,21.78426184]
[1722108037719,0.2653185,181.46,181.39,1.78426184]
[1722108038096,0.2653185,181.46,181.38,15.0787]
[1722108038338,5.5129,181.39,181.38,15.0787]
[1722108038626,5.5117,181.43,181.38,15.0787]
[1722108038808,0.17,181.42,181.38,15.0787]
[1722108039224,45.17,181.42,181.38,15.0787]
[1722108039398,0.17,181.42,181.38,15.0787]
[1722108039599,5.6821,181.42,181.38,15.0787]
[1722108040010,0.17,181.42,181.38,15.0787]
[1722108040412,5.5127,181.4,181.38,15.0787]
[1722108040615,20.2653185,181.46,181.38,15.0787]
[1722108040812,45.17,181.45,181.38,15.0787]
[1722108041002,20.0,181.44,181.38,15.0787]
[1722108041202,45.0,181.43,181.38,15.0787]
[1722108041405,0.17,181.42,181.38,15.0787]
[1722108041599,5.5124,181.41,181.38,15.0787]
[1722108042018,0.17,181.4,181.38,15.0787]
[1722108043026,0.17,181.4,181.33,15.0787]
[1722108043327,5.6826,181.4,181.33,15.0787]
[1722108043530,5.5136,181.37,181.33,15.0787]
[1722108043833,45.0,181.43,181.33,15.0787]
[1722108044145,0.17,181.36,181.33,15.0787]
[1722108044829,0.17,181.36,181.27,21.3375]
[1722108044998,0.17,181.36,181.28,1.78534452]
[1722108045422,65.17,181.37,181.28,1.78534452]
[1722108045834,20.17,181.37,181.28,1.78534452]
[1722108046110,0.17,181.37,181.28,1.78534452]
[1722108046831,5.5136,181.37,181.28,21.78534452]
[1722108047006,5.5144,181.35,181.28,1.78534452]
[1722108047209,50.5133,181.38,181.28,1.78534452]
[1722108047402,0.17,181.37,181.28,1.78534452]
[1722108047607,0.17,181.37,181.28,21.78534452]
[1722108048119,5.5126,181.4,181.28,21.78534452]
[1722108048322,14.0430185,181.46,181.28,40.02534452]
[1722108048526,5.5124,181.41,181.28,40.02534452]
[1722108048702,5.5124,181.41,181.29,45.0]
[1722108048907,5.5127,181.4,181.3,21.78514757]
[1722108049686,14.0430185,181.46,181.3,1.78514757]
[1722108049831,5.5117,181.43,181.31,15.0787]
[1722108050203,5.5124,181.41,181.32,20.0]
[1722108050401,45.0,181.45,181.32,20.0]
[1722108050402,5.5127,181.4,181.32,20.0]
[1722108050609,5.5123,181.42,181.31,15.0787]
[1722108050812,5.5125,181.41,181.32,1.78495067]
[1722108051428,0.17,181.4,181.32,1.78495067]
[1722108051615,20.0,181.44,181.32,21.78495067]
[1722108051823,20.0,181.44,181.33,6.5946]
[1722108052121,20.0,181.44,181.34,1.7847538]
[1722108052704,0.2653185,181.46,181.35,16.4531]
[1722108052905,0.2653185,181.46,181.36,1.78455698]
[1722108053338,0.2653185,181.46,181.36,21.78455698]
[1722108053628,5.5112,181.45,181.36,21.78455698]
[1722108054127,0.2653185,181.46,181.36,21.78455698]
[1722108054128,5.5114,181.44,181.36,1.78455698]
[1722108054331,0.17,181.43,181.36,1.78455698]
[1722108054626,5.5113,181.45,181.36,1.78455698]
[1722108054933,5.5118,181.43,181.36,1.78455698]
[1722108055307,5.5123,181.41,181.36,1.78455698]
[1722108055623,0.17,181.4,181.36,1.78455698]
[1722108055821,0.17,181.4,181.35,16.4531]
[1722108056202,20.17,181.4,181.35,16.4531]
[1722108056430,20.17,181.4,181.23,18.24]
[1722108056431,20.17,181.4,181.29,16.4531]
[1722108056629,5.514,181.36,181.29,16.4531]
[1722108056802,45.0,181.39,181.29,16.4531]
[1722108057015,5.5145,181.34,181.29,16.4531]
[1722108057438,45.0,181.39,181.29,16.4531]
[1722108057439,0.17,181.33,181.29,16.4531]
[1722108057804,45.0,181.39,181.29,16.4531]
[1722108058060,0.17,181.38,181.3,1.78514757]
[1722108059939,5.5139,181.36,181.3,1.78514757]
[1722108060239,5.5142,181.35,181.29,16.4531]
[1722108060433,0.17,181.34,181.29,16.4531]
[1722108060921,0.17,181.35,181.29,16.4531]
[1722108061329,0.17,181.35,181.29,18.23834604]
[1722108061509,20.0,181.37,181.29,18.23834604]
[1722108061713,5.6839,181.36,181.29,18.23834604]
[1722108062315,5.5143,181.35,181.29,18.23834604]
[1722108062519,40.0,181.4,181.29,18.23834604]
[1722108062850,5.5144,181.35,181.29,18.23834604]
[1722108063138,20.0,181.34,181.29,18.23834604]
[1722108063352,5.5154,181.32,181.24,23.0477]
[1722108063650,20.0,181.34,181.25,1.78564003]
[1722108063821,0.17,181.33,181.25,1.78564003]
[1722108064324,6.4189,181.45,181.25,1.78564003]
[1722108064517,0.17,181.44,181.25,1.78564003]
[1722108064837,6.4189,181.45,181.26,16.4531]
[1722108065031,5.5124,181.41,181.27,46.78544301]
[1722108065235,5.5127,181.4,181.28,21.78534452]
[1722108065427,5.5127,181.4,181.29,1.78524604]
[1722108065634,26.4189,181.45,181.29,1.78524604]
[1722108066038,5.5123,181.41,181.29,1.78524604]
[1722108066234,20.0,181.4,181.29,1.78524604]
[1722108066442,0.17,181.39,181.29,1.78524604]
[1722108066938,5.5133,181.38,181.29,1.78524604]
[1722108067116,5.513,181.39,181.29,1.78524604]
[1722108067326,0.17,181.38,181.29,1.78524604]
[1722108067734,20.0,181.4,181.29,1.78524604]
[1722108067950,0.17,181.39,181.29,1.78524604]
[1722108068248,5.683,181.39,181.29,1.78524604]
[1722108068417,0.17,181.39,181.29,1.78524604]
[1722108068615,45.17,181.39,181.29,1.78524604]
[1722108068828,20.0,181.38,181.29,1.78524604]
[1722108069228,0.17,181.37,181.29,1.78524604]
[1722108070145,5.512,181.42,181.29,1.78524604]
[1722108070332,6.4189,181.45,181.29,1.78524604]
[1722108070333,0.17,181.41,181.3,15.3935]
[1722108070520,0.17,181.41,181.31,21.78504911]
[1722108070723,0.17,181.41,181.32,1.78495067]
[1722108071530,5.71886412,181.4,181.32,1.78495067]
[1722108071862,0.17,181.39,181.32,1.78495067]
[1722108072247,25.5118,181.43,181.32,1.78495067]
[1722108072448,5.71931422,181.42,181.32,1.78495067]
[1722108072757,5.71931422,181.41,181.33,6.3011]
[1722108072958,6.05,181.49,181.34,1.7847538]
[1722108073268,5.7197358,181.45,181.34,21.7847538]
[1722108073427,6.05,181.49,181.35,15.3935]
[1722108073810,14.73413515,181.52,181.36,21.78455698]
[1722108073949,14.73413515,181.52,181.37,1.78445859]
[1722108073950,5.5103,181.48,181.37,1.78445859]
[1722108074328,20.0,181.51,181.37,1.78445859]
[1722108074945,0.17,181.45,181.37,1.78445859]
[1722108075170,5.6812,181.45,181.37,1.78445859]
[1722108075463,0.17,181.45,181.37,1.78445859]
[1722108075838,0.2653185,181.46,181.37,1.78445859]
[1722108077132,0.17,181.45,181.37,1.78445859]
[1722108078263,0.2653185,181.46,181.37,1.78445859]
[1722108078471,0.2653185,181.46,181.38,15.3935]
[1722108078674,0.2653185,181.46,181.39,21.78426184]
[1722108079019,0.2653185,181.46,181.4,1.78416348]
[1722108079969,0.17,181.45,181.4,1.78416348]
[1722108081566,5.5117,181.43,181.38,15.3935]
[1722108081864,0.17,181.42,181.38,15.3935]
[1722108082482,0.2653185,181.46,181.39,1.78426184]
[1722108083756,0.2653185,181.46,181.39,21.78426184]
[1722108084155,0.2653185,181.46,181.4,6.1075]
[1722108084355,0.2653185,181.46,181.4,7.89166348]
[1722108084668,0.2653185,181.46,181.41,1.78406513]
[1722108088388,0.17,181.45,181.41,1.78406513]
[1722108089082,0.17,181.45,181.38,15.3935]
[1722108089445,0.17,181.45,181.38,17.17786021]
[1722108089691,0.2653185,181.46,181.38,17.17786021]
[1722108090767,0.2653185,181.46,181.39,1.78426184]
[1722108091171,0.17,181.45,181.39,1.78426184]
[1722108094270,0.2653185,181.46,181.39,66.78426184]
[1722108095007,0.2653185,181.46,181.39,21.78426184]
[1722108095997,0.17,181.45,181.39,21.78426184]
[1722108096496,0.2653185,181.46,181.39,21.78426184]
[1722108097102,0.17,181.45,181.39,21.78426184]
[1722108097292,0.2653185,181.46,181.39,21.78426184]
[1722108099195,20.0,181.52,181.4,22.5254]
[1722108099395,5.5088,181.53,181.41,21.78406513]
[1722108099572,5.5088,181.53,181.42,1.78396679]
[1722108100190,5.5084,181.54,181.42,1.78396679]
[1722108100411,25.5088,181.53,181.42,1.78396679]
[1722108100712,20.0,181.53,181.42,1.78396679]
[1722108101003,20.0,181.53,181.4,67.5254]
[1722108101004,5.5103,181.48,181.4,22.5254]
[1722108101397,5.5108,181.46,181.4,22.5254]
[1722108101703,5.5111,181.45,181.4,16.5239]
[1722108101901,0.17,181.44,181.4,16.5239]
[1722108102115,5.6816,181.44,181.4,16.5239]
[1722108102431,5.513,181.39,181.3,6.0015]
[1722108102711,20.0,181.45,181.3,6.0015]
[1722108102712,20.0,181.47,181.31,16.5239]